fUST/lending_fUST_20250326
["ID","MTS","AMOUNT","RATE_DAILY","PERIOD"]
[356675453,1742940695928,-500.0,0.0001178,2]
[356675454,1742940695937,-179.368882,0.0001178,2]
[356675455,1742940695946,-500.0,0.0001178,2]
[356675456,1742940695955,-179.368882,0.0001178,2]
[356675457,1742940695964,-179.368882,0.0001178,2]
[356675458,1742940695974,-500.0,0.0001178,2]
[356675459,1742940695984,-542.45470458,0.0001178,2]
[356675460,1742940695993,-500.0,0.0001178,2]
[356675461,1742940696002,-500.0,0.0001178,2]
[356675462,1742940696012,-500.0,0.0001178,2]
[356675463,1742940696021,-500.0,0.0001178,2]
[356675464,1742940696031,-500.0,0.0001178,2]
[356675465,1742940696041,-667.21,0.0001178,2]
[356675466,1742940696051,-500.0,0.00012054,2]
[356675467,1742940696061,-179.368882,0.00012054,2]
[356675468,1742940696070,-500.0,0.00012054,2]
[356675469,1742940696087,-179.368882,0.00012054,2]
[356675470,1742940696097,-500.0,0.00012054,2]
[356675471,1742940696109,-179.368882,0.00012054,2]
[356675472,1742940696118,-500.0,0.00012054,2]
[356675473,1742940696128,-179.368882,0.00012054,2]
[356675474,1742940696138,-500.0,0.00012054,2]
[356675475,1742940696148,-500.0,0.00012054,2]
[356675476,1742940696157,-500.0,0.00012054,2]
[356675477,1742940696167,-500.0,0.00012054,2]
[356675478,1742940696177,-500.0,0.00012054,2]
[356675479,1742940696187,-500.0,0.00012328,2]
[356675480,1742940696196,-500.0,0.00012328,2]
[356675481,1742940696206,-179.368882,0.00012328,2]
[356675482,1742940696216,-500.0,0.00012328,2]
[356675483,1742940696225,-500.0,0.00012328,2]
[356675484,1742940696235,-179.368874,0.00012328,2]
[356675485,1742940696244,-500.0,0.00012328,2]
[356675486,1742940696253,-500.0,0.00012328,2]
[356675487,1742940696263,-500.0,0.00012328,2]
[356675488,1742940696273,-500.0,0.00012328,2]
[356675489,1742940696282,-517.97057888,0.00012602,2]
[356675490,1742940696292,-500.0,0.00012602,2]
[356675491,1742940696301,-500.0,0.00012602,2]
[356675492,1742940696311,-500.0,0.00012602,2]
[356675493,1742940696320,-500.0,0.00012602,2]
[356675494,1742940696330,-500.0,0.00012602,2]
[356675495,1742940696340,-500.0,0.00012602,2]
[356675496,1742940696349,-500.0,0.00012602,2]
[356675497,1742940696359,-500.0,0.00012876,2]
[356675498,1742940696368,-500.0,0.00012876,2]
[356675499,1742940696377,-500.0,0.00012876,2]
[356675500,1742940696387,-500.0,0.00012876,2]
[356675501,1742940696396,-500.0,0.0001315,2]
[356675502,1742940696406,-500.0,0.0001315,2]
[356675503,1742940696415,-500.0,0.0001315,2]
[356675504,1742940696425,-500.0,0.00013424,2]
[356675505,1742940696434,-500.0,0.00013424,2]
[356675506,1742940696444,-326.27,0.00013424,2]
[356675507,1742940696453,-500.0,0.00013698,2]
[356675508,1742940696463,-500.0,0.00013698,2]
[356675509,1742940696472,-500.0,0.00013972,2]
[356675510,1742940696481,-500.0,0.00013972,2]
[356675511,1742940696491,-500.0,0.00013972,2]
[356675512,1742940696500,-500.0,0.00014246,2]
[356675513,1742940696509,-500.0,0.00014246,2]
[356675514,1742940696518,-225.20815515,0.00014246,2]
[356675515,1742940696537,-500.0,0.00010958,2]
[356675516,1742940696546,-274.79184485,0.00014246,2]
[356675517,1742940696556,-500.0,0.00014246,2]
[356675518,1742940696566,-500.0,0.0001452,2]
[356675519,1742940696576,-500.0,0.0001452,2]
[356675520,1742940696590,-500.0,0.0001452,2]
[356675521,1742940696600,-458.97,0.0001452,2]
[356675522,1742940696609,-500.0,0.00014794,2]
[356675523,1742940696619,-500.0,0.00014794,2]
[356675524,1742940696629,-500.0,0.00014794,2]
[356675525,1742940696639,-335.48873633,0.00015068,2]
[356675526,1742940696648,-333.12,0.00015068,2]
[356675527,1742940696659,-500.0,0.00015068,2]
[356675528,1742940696669,-398.31,0.00015342,2]
[356675529,1742940696679,-500.0,0.0001589,2]
[356675530,1742940696689,-500.0,0.00016164,2]
[356675531,1742940696698,-500.0,0.00016438,2]
[356675532,1742940696707,-500.0,0.00016712,2]
[356675533,1742940696717,-2067.14710999,0.00016986,2]
[356675534,1742940696726,-1492.31,0.00016986,2]
[356675535,1742940696736,-15419.73,0.00016986,2]
[356675536,1742940696745,-3644.62,0.00016986,2]
[356675537,1742940696755,-1533.82,0.00016986,2]
[356675538,1742940696765,-3706.87,0.00016986,2]
[356675539,1742940696775,-961.87,0.00016986,2]
[356675540,1742940696784,-1104.44,0.00016986,2]
[356675541,1742940696793,-579.63,0.00016986,2]
[356675542,1742940696804,-2129.68,0.00016986,2]
[356675543,1742940696814,-7244.39,0.00016986,2]
[356675544,1742940696823,-9523.56,0.00016986,2]
[356675545,1742940696833,-10969.8,0.00016986,2]
[356675546,1742940696842,-1115.76,0.00016986,2]
[356675547,1742940696852,-103726.98,0.00016986,2]
[356675548,1742940696861,-568.91,0.00016986,2]
[356675549,1742940696870,-4158.75,0.00016986,2]
[356675550,1742940696879,-1141.01,0.00016986,2]
[356675551,1742940696888,-2734.78,0.00016986,2]
[356675552,1742940696898,-1309.59,0.00016986,2]
[356675553,1742940696907,-2068.14,0.00016986,2]
[356675554,1742940696916,-1828.29,0.00016986,2]
[356675555,1742940696926,-5178.43,0.00016986,2]
[356675556,1742940696935,-6147.84,0.00016986,2]
[356675557,1742940696945,-2427.31,0.00016986,2]
[356675558,1742940696954,-882.86,0.00016986,2]
[356675559,1742940696963,-568.23,0.00016986,2]
[356675560,1742940696973,-7679.91,0.00016986,2]
[356675561,1742940696982,-668.75,0.00016986,2]
[356675562,1742940696992,-1324.57,0.00016986,2]
[356675563,1742940697002,-3036.54,0.00016986,2]
[356675564,1742940697011,-722.44,0.00016986,2]
[356675565,1742940697021,-636.19,0.00016986,2]
[356675566,1742940697031,-518.08,0.00016986,2]
[356675567,1742940697040,-2355.41,0.00016986,2]
[356675568,1742940697050,-660.47,0.00016986,2]
[356675569,1742940697059,-500.0,0.00016986,2]
[356675570,1742940697069,-963.19705407,0.00017,2]
[356675571,1742940697078,-500.0,0.00017,2]
[356675572,1742940697088,-500.0,0.00017,2]
[356675573,1742940697098,-500.0,0.00017,2]
[356675574,1742940697107,-500.0,0.00017,2]
[356675575,1742940697116,-500.0,0.00017,2]
[356675576,1742940697126,-500.0,0.00017,2]
[356675577,1742940697135,-500.0,0.00017,2]
[356675578,1742940697145,-500.0,0.00017,2]
[356675579,1742940697155,-500.0,0.00017,2]
[356675580,1742940697165,-54879.52390118,0.00017,2]
[356675581,1742940697174,-6309.56640874,0.00017,5]
[356675582,1742940697184,-160.0,0.00017075,5]
[356675583,1742940697193,-500.0,0.00017113,2]
[356675584,1742940697203,-5000.0,0.00017156,2]
[356675585,1742940697213,-160.0,0.00017248,6]
[356675586,1742940697222,-684.95754438,0.0001726,2]
[356675587,1742940697232,-824.96005612,0.0001726,2]
[356675588,1742940697241,-898.6694268,0.0001726,2]
[356675589,1742940697251,-868.47405624,0.0001726,2]
[356675590,1742940697261,-886.55229344,0.0001726,2]
[356675591,1742940697270,-877.41668732,0.0001726,2]
[356675592,1742940697279,-1633.45324833,0.0001726,2]
[356675593,1742940697289,-871.50937593,0.0001726,2]
[356675594,1742940697298,-848.14,0.0001726,2]
[356675595,1742940697308,-711.2953421,0.0001726,2]
[356675596,1742940697317,-950.03180042,0.0001726,2]
[356675597,1742940697327,-1437.17101469,0.0001726,2]
[356675598,1742940697336,-574.26674738,0.0001726,2]
[356675599,1742940697346,-975.78476358,0.0001726,2]
[356675600,1742940697355,-1592.15033316,0.0001726,2]
[356675601,1742940697365,-2306.54,0.0001726,2]
[356675602,1742940697375,-224.54823749,0.0001726,2]
[356675603,1742940697385,-671.80649737,0.0001726,2]
[356675604,1742940697394,-530.96674098,0.0001726,2]
[356675605,1742940697403,-404.10451311,0.0001726,2]
[356675606,1742940697413,-773.36797085,0.0001726,2]
[356675607,1742940697422,-987.91125896,0.0001726,2]
[356675608,1742940697432,-519.83,0.0001726,2]
[356675609,1742940697441,-593.22340954,0.0001726,2]
[356675610,1742940697451,-2588.72,0.0001726,2]
[356675611,1742940697460,-635.13137562,0.0001726,2]
[356675612,1742940697470,-706.61639423,0.0001726,2]
[356675613,1742940697479,-920.13128209,0.0001726,2]
[356675614,1742940697489,-835.27,0.0001726,2]
[356675615,1742940697499,-822.15301579,0.0001726,2]
[356675616,1742940697509,-1269.1525661,0.0001726,2]
[356675617,1742940697519,-3195.62667522,0.0001726,2]
[356675618,1742940697528,-2353.64117834,0.0001726,2]
[356675619,1742940697537,-4464.14904913,0.0001726,2]
[356675620,1742940697547,-712.43100135,0.0001726,2]
[356675621,1742940697556,-5474.62755767,0.0001726,2]
[356675622,1742940697565,-5190.75959381,0.0001726,2]
[356675623,1742940697575,-1492.4450811,0.0001726,2]
[356675624,1742940697588,-15419.88466556,0.0001726,2]
[356675625,1742940697597,-3644.69255626,0.0001726,2]
[356675626,1742940697606,-1534.00912305,0.0001726,2]
[356675627,1742940697617,-3706.99,0.0001726,2]
[356675628,1742940697626,-962.0616293,0.0001726,2]
[356675629,1742940697636,-1104.59719583,0.0001726,2]
[356675630,1742940697645,-579.72786723,0.0001726,2]
[356675631,1742940697656,-2129.9118014,0.0001726,2]
[356675632,1742940697666,-7244.46747431,0.0001726,2]
[356675633,1742940697676,-9523.76116996,0.0001726,2]
[356675634,1742940697686,-10969.89087607,0.0001726,2]
[356675635,1742940697695,-1115.81633878,0.0001726,2]
[356675636,1742940697704,-103727.12495129,0.0001726,2]
[356675637,1742940697714,-568.91979772,0.0001726,2]
[356675638,1742940697723,-4158.78641577,0.0001726,2]
[356675639,1742940697732,-1141.19455403,0.0001726,2]
[356675640,1742940697742,-2734.87139357,0.0001726,2]
[356675641,1742940697751,-1309.79989527,0.0001726,2]
[356675642,1742940697761,-2068.34681549,0.0001726,2]
[356675643,1742940697770,-1828.30941479,0.0001726,2]
[356675644,1742940697780,-5178.46854386,0.0001726,2]
[356675645,1742940697789,-6148.03795283,0.0001726,2]
[356675646,1742940697798,-2427.47846522,0.0001726,2]
[356675647,1742940697808,-882.99722815,0.0001726,2]
[356675648,1742940697817,-568.38869079,0.0001726,2]
[356675649,1742940697827,-7680.0080064,0.0001726,2]
[356675650,1742940697836,-668.83,0.0001726,2]
[356675651,1742940697846,-1324.60549307,0.0001726,2]
[356675652,1742940697855,-3036.6222155,0.0001726,2]
[356675653,1742940697865,-722.44124148,0.0001726,2]
[356675654,1742940697874,-636.25394804,0.0001726,2]
[356675655,1742940697884,-518.27806532,0.0001726,2]
[356675656,1742940697893,-2355.45076248,0.0001726,2]
[356675657,1742940697903,-660.53290609,0.0001726,2]
[356675658,1742940697912,-155.12,0.0001726,2]
[356675659,1742940697922,-3000.0,0.0001726,2]
[356675660,1742940697931,-160.0,0.00017421,7]
[356675661,1742940697940,-36640.14996482,0.00017486,2]
[356675662,1742940697950,-494.0,0.000175,7]
[356675663,1742940697959,-1613.0,0.00017561,2]
[356675664,1742940697969,-160.0,0.00017594,8]
[356675665,1742940697979,-2048.95682413,0.000176,2]
[356675666,1742940697988,-500.0,0.00017632,2]
[356675667,1742940697997,-160.0,0.00017767,9]
[356675668,1742940698007,-160.0,0.0001794,10]
[356675669,1742940698016,-2949.940704,0.00018,2]
[356675670,1742940698026,-500.0,0.00018,2]
[356675671,1742940698036,-500.0,0.00018,2]
[356675672,1742940698046,-500.0,0.00018,2]
[356675673,1742940698055,-500.0,0.00018,2]
[356675674,1742940698065,-500.0,0.00018,2]
[356675675,1742940698074,-500.0,0.00018,2]
[356675676,1742940698084,-500.0,0.00018,2]
[356675677,1742940698093,-504.47337242,0.00018,2]
[356675678,1742940698103,-500.0,0.00018,2]
[356675679,1742940698114,-500.0,0.00018,2]
[356675680,1742940698123,-500.0,0.00018,2]
[356675681,1742940698133,-500.0,0.00018,2]
[356675682,1742940698142,-500.0,0.00018,2]
[356675683,1742940698152,-604.50597836,0.00018,2]
[356675684,1742940698162,-500.0,0.00018,2]
[356675685,1742940698171,-855.79469711,0.00018,2]
[356675686,1742940698180,-564.00325841,0.00018,2]
[356675687,1742940698190,-500.0,0.00018,2]
[356675688,1742940698199,-501.56994931,0.00018,2]
[356675689,1742940698209,-20000.18528138,0.00018,2]
[356675690,1742940698219,-154744.51293234,0.00018,2]
[356675691,1742940698231,-21119.63502984,0.00018,4]
[356675692,1742940698241,-200.03450481,0.00018,2]
[356675693,1742940698251,-168.39,0.00018,2]
[356675694,1742940698261,-168.39,0.00018,2]
[356675695,1742940698270,-168.39,0.00018,2]
[356675696,1742940698279,-36640.14996482,0.00018107,2]
[356675697,1742940698289,-160.0,0.00018113,11]
[356675698,1742940698299,-266.63857959,0.00018175,120]
[356675699,1742940698308,-500.0,0.0001824,2]
[356675700,1742940698318,-500.0,0.0001824,2]
[356675701,1742940698328,-500.0,0.0001824,2]
[356675702,1742940698338,-500.0,0.0001824,2]
[356675703,1742940698347,-500.0,0.0001824,2]
[356675704,1742940698356,-500.0,0.0001824,2]
[356675705,1742940698367,-500.0,0.0001824,2]
[356675706,1742940698376,-500.0,0.0001824,2]
[356675707,1742940698386,-500.0,0.0001824,2]
[356675708,1742940698396,-499.3,0.0001824,2]
[356675709,1742940698406,-500.0,0.0001824,2]
[356675710,1742940698415,-500.0,0.0001824,2]
[356675711,1742940698425,-500.0,0.0001824,2]
[356675712,1742940698435,-500.0,0.0001824,2]
[356675713,1742940698444,-500.0,0.0001824,2]
[356675714,1742940698453,-500.0,0.0001824,2]
[356675715,1742940698462,-500.0,0.0001824,2]
[356675716,1742940698472,-500.0,0.0001824,2]
[356675717,1742940698481,-500.0,0.0001824,2]
[356675718,1742940698491,-500.0,0.0001824,2]
[356675719,1742940698649,-500.0,0.0001824,2]
[356675720,1742940698662,-164.86466381,0.0001824,2]
[356675721,1742940698672,-500.0,0.0001824,2]
[356675722,1742940698681,-500.0,0.0001824,2]
[356675723,1742940698691,-500.0,0.0001824,2]
[356675724,1742940698701,-499.3,0.0001824,2]
[356675725,1742940698711,-500.0,0.0001824,2]
[356675726,1742940698721,-500.0,0.0001824,2]
[356675727,1742940698731,-500.0,0.0001824,2]
[356675728,1742940698740,-190.0,0.0001824,2]
[356675729,1742940698750,-500.0,0.0001824,2]
[356675730,1742940698760,-190.38682016,0.0001824,2]
[356675731,1742940698770,-505.40505281,0.0001824,2]
[356675732,1742940698779,-500.0,0.0001824,2]
[356675733,1742940698788,-500.0,0.0001824,2]
[356675734,1742940698798,-500.0,0.0001824,2]
[356675735,1742940698807,-500.0,0.0001824,2]
[356675736,1742940698817,-500.0,0.0001824,2]
[356675737,1742940698826,-500.0,0.0001824,2]
[356675738,1742940698835,-877.2462913,0.0001824,2]
[356675739,1742940698846,-500.0,0.0001824,2]
[356675740,1742940698856,-500.0,0.0001824,2]
[356675741,1742940698866,-500.0,0.0001824,2]
[356675742,1742940698876,-500.0,0.0001824,2]
[356675743,1742940698885,-500.0,0.0001824,2]
[356675744,1742940698894,-160.0,0.00018286,12]
[356675745,1742940698903,-3000.0,0.00018356,2]
[356675746,1742940698914,-541.0,0.00018358,2]
[356675747,1742940698924,-150.0,0.00018358,2]
[356675748,1742940698935,-1915.0,0.00018358,2]
[356675749,1742940698944,-2262.0,0.00018358,2]
[356675750,1742940698954,-400.0,0.00018368,2]
[356675751,1742940698964,-5000.0,0.00018405,2]
[356675752,1742940698974,-160.0,0.00018459,13]
[356675753,1742940698984,-474.0,0.000185,2]
[356675754,1742940698994,-500.0,0.00018514,2]
[356675755,1742940699005,-159.28,0.000186,2]
[356675756,1742940699014,-159.28,0.000186,2]
[356675757,1742940699025,-159.28,0.000186,2]
[356675758,1742940699035,-160.0,0.00018632,14]
[356675759,1742940699044,-36640.14996482,0.00018728,2]
[356675760,1742940699054,-160.0,0.00018805,15]
[356675761,1742940699064,-160.0,0.00018978,16]
[356675762,1742940699074,-241089.58380366,0.00019,2]
[356675763,1742940699083,-494.0,0.00019,8]
[356675764,1742940699094,-160.0,0.00019152,17]
[356675765,1742940699104,-274.91699839,0.00019152,5]
[356675766,1742940699114,-541.27308154,0.00019177,4]
[356675767,1742940699123,-602.15072628,0.00019178,2]
[356675768,1742940699133,-1000.0,0.00019178,2]
[356675769,1742940699143,-1000.0,0.00019178,2]
[356675770,1742940699153,-1000.0,0.00019178,2]
[356675771,1742940699163,-502.24524247,0.00019178,2]
[356675772,1742940699172,-1000.0,0.00019178,2]
[356675773,1742940699183,-1000.0,0.00019178,2]
[356675774,1742940699193,-1024.70440207,0.00019178,2]
[356675775,1742940699203,-1000.0,0.00019178,2]
[356675776,1742940699213,-1078.83304234,0.00019178,2]
[356675777,1742940699222,-1000.0,0.00019178,2]
[356675778,1742940699232,-1000.0,0.00019178,2]
[356675779,1742940699242,-1000.0,0.00019178,2]
[356675780,1742940699251,-1000.0,0.00019178,2]
[356675781,1742940699261,-1000.0,0.00019178,2]
[356675782,1742940699270,-1000.0,0.00019178,2]
[356675783,1742940699280,-1000.0,0.00019178,2]
[356675784,1742940699290,-1000.0,0.00019178,2]
[356675785,1742940699299,-1000.0,0.00019178,2]
[356675786,1742940699308,-1000.0,0.00019178,2]
[356675787,1742940699318,-1000.0,0.00019178,2]
[356675788,1742940699328,-1000.0,0.00019178,2]
[356675789,1742940699338,-1000.0,0.00019178,2]
[356675790,1742940699348,-1000.0,0.00019178,2]
[356675791,1742940699357,-1000.0,0.00019178,2]
[356675792,1742940699367,-1002.50243938,0.00019178,2]
[356675793,1742940699377,-506.79536474,0.00019178,2]
[356675794,1742940699388,-1000.0,0.00019178,2]
[356675795,1742940699398,-1000.0,0.00019178,2]
[356675796,1742940699408,-1000.0,0.00019178,2]
[356675797,1742940699418,-1000.0,0.00019178,2]
[356675798,1742940699428,-1000.0,0.00019178,2]
[356675799,1742940699437,-1000.0,0.00019178,2]
[356675800,1742940699447,-1000.0,0.00019178,2]
[356675801,1742940699456,-1000.0,0.00019178,2]
[356675802,1742940699466,-200.0,0.000192,3]
[356675803,1742940699476,-2010.85912373,0.00019205,5]
[356675804,1742940699485,-2258.0,0.00019299,2]
[356675805,1742940699494,-1000.0,0.0001934,2]
[356675806,1742940699504,-300.0,0.0001934,2]
[356675807,1742940699513,-36640.14996482,0.00019348,2]
[356675808,1742940699523,-500.0,0.0001944,2]
[356675809,1742940699532,-3000.0,0.00019452,2]
[356675810,1742940699542,-1492.414356,0.0001978,5]
[356675811,1742940699552,-1000.0,0.000198,5]
[356675812,1742940699561,-1000.0,0.0001982,5]
[356675813,1742940699571,-1000.0,0.0001984,5]
[356675814,1742940699583,-1000.0,0.0001986,5]
[356675815,1742940699593,-1000.0,0.0001988,5]
[356675816,1742940699602,-1000.0,0.000199,5]
[356675817,1742940699612,-374.78,0.000199,31]
[356675818,1742940699623,-374.78,0.000199,31]
[356675819,1742940699632,-374.78,0.000199,31]
[356675820,1742940699642,-374.78,0.000199,31]
[356675821,1742940699651,-374.78,0.000199,31]
[356675822,1742940699663,-374.78,0.000199,31]
[356675823,1742940699674,-374.78,0.000199,31]
[356675824,1742940699684,-374.78,0.000199,31]
[356675825,1742940699693,-374.78,0.000199,31]
[356675826,1742940699703,-374.78,0.000199,31]
[356675827,1742940699712,-374.78,0.000199,31]
[356675828,1742940699721,-374.78,0.000199,31]
[356675829,1742940699731,-374.78,0.000199,31]
[356675830,1742940699739,-374.78,0.000199,31]
[356675831,1742940699749,-374.78,0.000199,31]
[356675832,1742940699758,-374.78,0.000199,31]
[356675833,1742940699767,-1000.0,0.0001992,5]
[356675834,1742940699777,-1000.0,0.0001994,5]
[356675835,1742940699786,-1000.0,0.0001996,5]
[356675836,1742940699795,-36640.14996482,0.00019969,2]
[356675837,1742940699805,-1000.0,0.0001998,5]
[356675838,1742940699815,-356.36710748,0.0002,2]
[356675839,1742940699825,-25651.76812981,0.0002,2]
[356675840,1742940699834,-250.0,0.0002,2]
[356675841,1742940699843,-428.26052,0.0002,2]
[356675842,1742940699853,-192.78,0.0002,2]
[356675843,1742940699862,-179.44,0.0002,15]
[356675844,1742940699872,-169.086,0.0002,2]
[356675845,1742940699882,-1461.258242,0.0002,5]
[356675846,1742940699891,-1000.0,0.0002,5]
[356675847,1742940699900,-252.197064,0.0002,30]
[356675848,1742940699910,-151.25801289,0.0002,2]
[356675849,1742940699920,-150.0,0.0002,2]
[356675850,1742940699929,-2000.0,0.0002,4]
[356675851,1742940699939,-500.0,0.00020412,2]
[356675852,1742940699948,-494.0,0.000205,9]
[356675853,1742940699958,-179.69451932,0.00020548,2]
[356675854,1742940699967,-1875.722799,0.00020548,2]
[356675855,1742940699978,-3000.0,0.00020548,2]
[356675856,1742940699987,-36640.14996482,0.0002059,2]
[356675857,1742940699997,-1428.32246456,0.0002071,20]
[356675858,1742940700006,-4237.89,0.000208,7]
[356675859,1742940700016,-150618.09400119,0.00021,2]
[356675860,1742940700025,-10000.0,0.00021,5]
[356675861,1742940700035,-3028.94118945,0.00021,3]
[356675862,1742940700044,-265.40149513,0.00021,2]
[356675863,1742940700054,-3000.0,0.00021,2]
[356675864,1742940700064,-160.0,0.00021,3]
[356675865,1742940700073,-150.0,0.00021,2]
[356675866,1742940700083,-834.75273087,0.00021,3]
[356675867,1742940700093,-2000.0,0.00021,4]
[356675868,1742940700102,-3000.0,0.0002101,2]
[356675869,1742940700112,-3000.0,0.0002102,2]
[356675870,1742940700121,-3000.0,0.0002103,2]
[356675871,1742940700131,-3000.0,0.0002104,2]
[356675872,1742940700141,-3000.0,0.0002105,2]
[356675873,1742940700150,-3000.0,0.0002106,2]
[356675874,1742940700160,-3000.0,0.0002107,2]
[356675875,1742940700169,-3000.0,0.0002108,2]
[356675876,1742940700179,-3000.0,0.0002109,2]
[356675877,1742940700189,-3000.0,0.000211,2]
[356675878,1742940700199,-3000.0,0.0002111,2]
[356675879,1742940700208,-3000.0,0.0002112,2]
[356675880,1742940700218,-3000.0,0.0002113,2]
[356675881,1742940700227,-3000.0,0.0002114,2]
[356675882,1742940700236,-3000.0,0.0002115,2]
[356675883,1742940700246,-3000.0,0.0002116,2]
[356675884,1742940700255,-3000.0,0.0002117,2]
[356675885,1742940700265,-3000.0,0.0002118,2]
[356675886,1742940700274,-3000.0,0.0002119,2]
[356675887,1742940700283,-3000.0,0.000212,2]
[356675888,1742940700293,-3162.0,0.00021208,2]
[356675889,1742940700302,-3000.0,0.0002121,2]
[356675890,1742940700311,-36640.14996482,0.0002121,2]
[356675891,1742940700320,-3000.0,0.0002122,2]
[356675892,1742940700330,-3000.0,0.0002123,2]
[356675893,1742940700339,-3000.0,0.0002124,2]
[356675894,1742940700349,-3000.0,0.0002125,2]
[356675895,1742940700359,-3000.0,0.0002126,2]
[356675896,1742940700368,-3000.0,0.0002127,2]
[356675897,1742940700377,-3000.0,0.0002128,2]
[356675898,1742940700386,-3000.0,0.0002129,2]
[356675899,1742940700396,-13668.23777934,0.000213,2]
[356675900,1742940700405,-3000.0,0.000213,2]
[356675901,1742940700415,-3000.0,0.0002131,2]
[356675902,1742940700424,-3000.0,0.0002132,2]
[356675903,1742940700434,-3000.0,0.0002133,2]
[356675904,1742940700444,-3000.0,0.0002134,2]
[356675905,1742940700453,-3000.0,0.0002135,2]
[356675906,1742940700462,-541.0,0.00021358,2]
[356675907,1742940700472,-150.0,0.00021358,2]
[356675908,1742940700481,-1915.0,0.00021358,2]
[356675909,1742940700490,-2262.0,0.00021358,2]
[356675910,1742940700499,-3000.0,0.0002136,2]
[356675911,1742940700508,-400.0,0.00021368,2]
[356675912,1742940700517,-3000.0,0.0002137,2]
[356675913,1742940700527,-3000.0,0.0002138,2]
[356675914,1742940700536,-3000.0,0.0002139,2]
[356675915,1742940700551,-3000.0,0.000214,2]
[356675916,1742940700564,-3000.0,0.0002141,2]
[356675917,1742940700581,-3000.0,0.0002142,2]
[356675918,1742940700591,-5344.381526,0.0002143,2]
[356675919,1742940700604,-500.0,0.00021432,2]
[356675920,1742940700620,-374.78,0.000216,31]
[356675921,1742940700634,-374.78,0.000216,31]
[356675922,1742940700649,-374.78,0.000216,31]
[356675923,1742940700663,-374.78,0.000216,31]
[356675924,1742940700678,-374.78,0.000216,31]
[356675925,1742940700691,-374.78,0.000216,31]
[356675926,1742940700704,-374.78,0.000216,31]
[356675927,1742940700715,-374.78,0.000216,31]
[356675928,1742940700729,-374.78,0.000216,31]
[356675929,1742940700744,-374.78,0.000216,31]
[356675930,1742940700755,-374.78,0.000216,31]
[356675931,1742940700767,-374.78,0.000216,31]
[356675932,1742940700778,-374.78,0.000216,31]
[356675933,1742940700792,-374.78,0.000216,31]
[356675934,1742940700807,-374.78,0.000216,31]
[356675935,1742940700820,-374.78,0.000216,31]
[356675936,1742940700834,-374.78,0.000216,31]
[356675937,1742940700848,-374.78,0.000216,31]
[356675938,1742940700861,-374.78,0.000216,31]
[356675939,1742940700871,-374.78,0.000216,31]
[356675940,1742940700882,-374.78,0.000216,31]
[356675941,1742940700895,-374.78,0.000216,31]
[356675942,1742940700909,-374.78,0.000216,31]
[356675943,1742940700922,-374.78,0.000216,31]
[356675944,1742940700935,-3000.0,0.00021644,2]
[356675945,1742940700948,-36640.14996482,0.00021831,3]
[356675946,1742940700962,-175.6,0.0002191,120]
[356675947,1742940700973,-150.0,0.00021917,2]
[356675948,1742940700985,-444.53238913,0.00021917,2]
[356675949,1742940700998,-500.0,0.00021917,2]
[356675950,1742940701010,-500.0,0.00021917,2]
[356675951,1742940701022,-500.0,0.00021917,2]
[356675952,1742940701034,-500.0,0.00021917,2]